fUSD/lending_fUSD_20240516
["ID","MTS","AMOUNT","RATE_DAILY","PERIOD"]
[327142301,1715847085641,-292.10841685,0.0001137,2]
[327142302,1715847085651,-500.0,0.0001137,2]
[327142303,1715847085660,-500.0,0.0001137,2]
[327142304,1715847085670,-500.0,0.0001137,2]
[327142305,1715847085679,-500.0,0.0001137,2]
[327142306,1715847085689,-500.0,0.0001137,2]
[327142307,1715847085699,-500.0,0.0001137,2]
[327142308,1715847085708,-163.68674766,0.0001137,2]
[327142309,1715847085718,-605.91,0.0001137,2]
[327142310,1715847085728,-525.47229992,0.0001137,2]
[327142311,1715847085738,-500.0,0.0001137,2]
[327142312,1715847085748,-500.0,0.0001137,2]
[327142313,1715847085757,-500.0,0.0001137,2]
[327142314,1715847085768,-500.0,0.0001137,2]
[327142315,1715847085777,-500.0,0.0001137,2]
[327142316,1715847085787,-500.0,0.0001137,2]
[327142317,1715847085797,-500.0,0.0001137,2]
[327142318,1715847085806,-366.86367201,0.0001137,2]
[327142319,1715847085816,-500.0,0.0001137,2]
[327142320,1715847085826,-500.0,0.0001137,2]
[327142321,1715847085836,-500.0,0.0001137,2]
[327142322,1715847085846,-520.29933325,0.0001137,2]
[327142323,1715847085855,-498.1198353,0.0001137,2]
[327142324,1715847085865,-500.0,0.0001137,2]
[327142325,1715847085875,-500.0,0.0001137,2]
[327142326,1715847085885,-500.0,0.0001137,2]
[327142327,1715847085894,-500.0,0.0001137,2]
[327142328,1715847085905,-472.26,0.0001137,2]
[327142329,1715847085914,-500.0,0.00011371,2]
[327142330,1715847085924,-507.90848267,0.00011371,2]
[327142331,1715847085934,-500.0,0.00011371,2]
[327142332,1715847085943,-500.0,0.00011371,2]
[327142333,1715847085953,-303.04176539,0.00011371,2]
[327142334,1715847085963,-500.0,0.00011371,2]
[327142335,1715847085972,-500.0,0.00011371,2]
[327142336,1715847085982,-500.0,0.00011371,2]
[327142337,1715847085991,-500.0,0.00011371,2]
[327142338,1715847086002,-500.0,0.00011371,2]
[327142339,1715847086011,-500.0,0.00011371,2]
[327142340,1715847086022,-500.0,0.00011371,2]
[327142341,1715847086031,-514.79244771,0.00011371,2]
[327142342,1715847086040,-200.22551623,0.00011371,2]
[327142343,1715847086049,-500.0,0.00011371,2]
[327142344,1715847086059,-223.51113052,0.00011371,2]
[327142345,1715847086069,-500.0,0.00011371,2]
[327142346,1715847086078,-500.0,0.00011371,2]
[327142347,1715847086088,-151.0,0.00011371,2]
[327142348,1715847086097,-500.0,0.00011371,2]
[327142349,1715847086107,-500.0,0.00011371,2]
[327142350,1715847086116,-554.24,0.00011371,2]
[327142351,1715847086126,-479.32,0.00011371,2]
[327142352,1715847086136,-500.0,0.00011371,2]
[327142353,1715847086145,-500.0,0.00011371,2]
[327142354,1715847086154,-500.0,0.00011371,2]
[327142355,1715847086164,-317.25851856,0.00011371,2]
[327142356,1715847086173,-500.0,0.00011371,2]
[327142357,1715847086183,-500.0,0.00011371,2]
[327142358,1715847086193,-374.63928511,0.00011371,2]
[327142359,1715847086203,-500.0,0.00011371,2]
[327142360,1715847086212,-500.0,0.00011371,2]
[327142361,1715847086222,-512.36000833,0.00011371,2]
[327142362,1715847086231,-432.02319694,0.00011371,2]
[327142363,1715847086241,-500.0,0.00011371,2]
[327142364,1715847086252,-500.0,0.00011371,2]
[327142365,1715847086262,-500.0,0.00011371,2]
[327142366,1715847086272,-208.52980691,0.00011372,2]
[327142367,1715847086281,-500.0,0.00011372,2]
[327142368,1715847086290,-500.0,0.00011372,2]
[327142369,1715847086300,-500.0,0.00011372,2]
[327142370,1715847086312,-500.0,0.00011372,2]
[327142371,1715847086324,-517.43,0.00011372,2]
[327142372,1715847086333,-500.0,0.00011372,2]
[327142373,1715847086343,-500.0,0.00011372,2]
[327142374,1715847086354,-575.52,0.00011372,2]
[327142375,1715847086363,-500.0,0.00011372,2]
[327142376,1715847086373,-500.0,0.00011372,2]
[327142377,1715847086382,-500.0,0.00011372,2]
[327142378,1715847086391,-604.24,0.00011372,2]
[327142379,1715847086402,-500.0,0.00011372,2]
[327142380,1715847086412,-500.0,0.00011372,2]
[327142381,1715847086422,-500.0,0.00011372,2]
[327142382,1715847086432,-500.0,0.00011372,2]
[327142383,1715847086441,-500.0,0.00011372,2]
[327142384,1715847086451,-500.0,0.00011372,2]
[327142385,1715847086460,-500.0,0.00011372,2]
[327142386,1715847086470,-500.0,0.00011372,2]
[327142387,1715847086479,-500.0,0.00011372,2]
[327142388,1715847086489,-500.0,0.00011372,2]
[327142389,1715847086499,-500.0,0.00011372,2]
[327142390,1715847086510,-500.0,0.00011372,2]
[327142391,1715847086520,-605.91,0.00011372,2]
[327142392,1715847086530,-500.0,0.00011372,2]
[327142393,1715847086540,-500.0,0.00011372,2]
[327142394,1715847086550,-500.0,0.00011372,2]
[327142395,1715847086559,-500.0,0.00011372,2]
[327142396,1715847086569,-500.0,0.00011372,2]
[327142397,1715847086578,-472.03537793,0.00011372,2]
[327142398,1715847086588,-500.0,0.00011372,2]
[327142399,1715847086597,-500.0,0.00011372,2]
[327142400,1715847086607,-206.1600845,0.00011372,2]
[327142401,1715847086617,-500.0,0.00011372,2]
[327142402,1715847086627,-500.0,0.00011372,2]
[327142403,1715847086636,-500.0,0.00011372,2]
[327142404,1715847086646,-175.50988197,0.00011372,2]
[327142405,1715847086658,-500.0,0.00011372,2]
[327142406,1715847086668,-1892.46,0.0001144,2]
[327142407,1715847086678,-1564.1179518,0.00011457,2]
[327142408,1715847086688,-411.97458812,0.00011469,2]
[327142409,1715847086699,-500.0,0.00011469,2]
[327142410,1715847086710,-500.0,0.00011469,2]
[327142411,1715847086721,-500.0,0.00011469,2]
[327142412,1715847086732,-500.0,0.00011469,2]
[327142413,1715847086742,-500.0,0.00011469,2]
[327142414,1715847086753,-500.0,0.00011469,2]
[327142415,1715847086764,-500.0,0.00011469,2]
[327142416,1715847086773,-500.0,0.00011469,2]
[327142417,1715847086783,-618.42,0.00011469,2]
[327142418,1715847086793,-500.0,0.00011469,2]
[327142419,1715847086802,-500.0,0.00011469,2]
[327142420,1715847086811,-500.0,0.00011469,2]
[327142421,1715847086821,-387.91737339,0.00011469,2]
[327142422,1715847086831,-500.0,0.00011469,2]
[327142423,1715847086841,-500.0,0.0001147,2]
[327142424,1715847086850,-500.0,0.0001147,2]
[327142425,1715847086859,-500.0,0.0001147,2]
[327142426,1715847086870,-500.0,0.0001147,2]
[327142427,1715847086880,-517.43,0.0001147,2]
[327142428,1715847086890,-500.0,0.0001147,2]
[327142429,1715847086901,-500.0,0.0001147,2]
[327142430,1715847086910,-500.0,0.0001147,2]
[327142431,1715847086920,-500.0,0.0001147,2]
[327142432,1715847086930,-151.0,0.0001147,2]
[327142433,1715847086941,-464.56,0.0001147,2]
[327142434,1715847086951,-604.24,0.0001147,2]
[327142435,1715847086961,-351.56,0.0001147,2]
[327142436,1715847086971,-500.0,0.0001147,2]
[327142437,1715847086981,-500.0,0.0001147,2]
[327142438,1715847086991,-500.0,0.0001147,2]
[327142439,1715847087003,-500.0,0.0001147,2]
[327142440,1715847087015,-500.0,0.0001147,2]
[327142441,1715847087025,-500.0,0.0001147,2]
[327142442,1715847087034,-500.0,0.0001147,2]
[327142443,1715847087044,-500.0,0.0001147,2]
[327142444,1715847087053,-500.0,0.0001147,2]
[327142445,1715847087063,-500.0,0.0001147,2]
[327142446,1715847087072,-500.0,0.0001147,2]
[327142447,1715847087081,-500.0,0.0001147,2]
[327142448,1715847087090,-500.0,0.0001147,2]
[327142449,1715847087100,-500.0,0.0001147,2]
[327142450,1715847087109,-605.91,0.0001147,2]
[327142451,1715847087118,-390.97923922,0.0001147,2]
[327142452,1715847087128,-322.64848135,0.0001147,2]
[327142453,1715847087137,-232.24012714,0.0001147,2]
[327142454,1715847087146,-500.0,0.0001147,2]
[327142455,1715847087156,-500.0,0.0001147,2]
[327142456,1715847087165,-500.0,0.0001147,2]
[327142457,1715847087174,-500.0,0.0001147,2]
[327142458,1715847087184,-500.0,0.0001147,2]
[327142459,1715847087193,-500.0,0.0001147,2]
[327142460,1715847087203,-500.0,0.0001147,2]
[327142461,1715847087212,-500.0,0.0001147,2]
[327142462,1715847087222,-500.0,0.0001147,2]
[327142463,1715847087231,-500.0,0.0001147,2]
[327142464,1715847087240,-500.0,0.0001147,2]
[327142465,1715847087251,-500.0,0.0001147,2]
[327142466,1715847087260,-500.0,0.0001147,2]
[327142467,1715847087269,-208.86173157,0.0001147,2]
[327142468,1715847087278,-500.0,0.0001147,2]
[327142469,1715847087287,-500.0,0.0001147,2]
[327142470,1715847087296,-575.78021576,0.00011471,2]
[327142471,1715847087305,-500.0,0.00011471,2]
[327142472,1715847087318,-500.0,0.00011471,2]
[327142473,1715847087327,-500.0,0.00011471,2]
[327142474,1715847087335,-500.0,0.00011471,2]
[327142475,1715847087348,-500.0,0.00011471,2]
[327142476,1715847087359,-500.0,0.00011471,2]
[327142477,1715847087368,-500.0,0.00011471,2]
[327142478,1715847087377,-500.0,0.00011471,2]
[327142479,1715847087387,-500.0,0.00011471,2]
[327142480,1715847087398,-500.0,0.00011471,2]
[327142481,1715847087408,-500.0,0.00011471,2]
[327142482,1715847087417,-500.0,0.00011471,2]
[327142483,1715847087427,-517.43,0.00011471,2]
[327142484,1715847087436,-517.43,0.00011471,2]
[327142485,1715847087446,-517.43,0.00011471,2]
[327142486,1715847087455,-427.6215434,0.00011471,2]
[327142487,1715847087464,-500.0,0.00011471,2]
[327142488,1715847087473,-500.0,0.00011471,2]
[327142489,1715847087481,-500.0,0.00011471,2]
[327142490,1715847087490,-499.67026198,0.00011471,2]
[327142491,1715847087501,-226.64,0.00011471,2]
[327142492,1715847087510,-500.0,0.00011471,2]
[327142493,1715847087519,-506.68898201,0.00011471,2]
[327142494,1715847087528,-500.0,0.00011471,2]
[327142495,1715847087537,-491.57078387,0.00011471,2]
[327142496,1715847087546,-500.0,0.00011471,2]
[327142497,1715847087555,-500.0,0.00011471,2]
[327142498,1715847087564,-151.0,0.00011471,2]
[327142499,1715847087574,-500.0,0.00011471,2]
[327142500,1715847087583,-500.0,0.00011471,2]
[327142501,1715847087755,-218.22772728,0.00011471,2]
[327142502,1715847087764,-500.0,0.00011471,2]
[327142503,1715847087773,-500.0,0.00011471,2]
[327142504,1715847087782,-602.62379929,0.00011471,2]
[327142505,1715847087791,-151.0,0.00011471,2]
[327142506,1715847087800,-604.24,0.00011471,2]
[327142507,1715847087809,-604.24,0.00011471,2]
[327142508,1715847087818,-604.24,0.00011471,2]
[327142509,1715847087828,-500.0,0.00011471,2]
[327142510,1715847087837,-500.0,0.00011471,2]
[327142511,1715847087847,-500.0,0.00011471,2]
[327142512,1715847087856,-500.0,0.00011471,2]
[327142513,1715847087865,-500.0,0.00011471,2]
[327142514,1715847087874,-500.0,0.00011471,2]
[327142515,1715847087883,-500.0,0.00011471,2]
[327142516,1715847087892,-500.0,0.00011471,2]
[327142517,1715847087903,-500.0,0.00011471,2]
[327142518,1715847087913,-500.0,0.00011471,2]
[327142519,1715847087922,-515.53855746,0.00011471,2]
[327142520,1715847087933,-500.0,0.00011471,2]
[327142521,1715847087943,-500.0,0.00011471,2]
[327142522,1715847087952,-500.0,0.00011471,2]
[327142523,1715847087962,-500.0,0.00011471,2]
[327142524,1715847087972,-500.0,0.00011471,2]
[327142525,1715847087981,-500.0,0.00011471,2]
[327142526,1715847087991,-500.0,0.00011471,2]
[327142527,1715847088002,-500.0,0.00011471,2]
[327142528,1715847088012,-278.12002326,0.00011471,2]
[327142529,1715847088022,-392.96223821,0.00011471,2]
[327142530,1715847088032,-500.0,0.00011471,2]
[327142531,1715847088041,-500.0,0.00011471,2]
[327142532,1715847088050,-458.32403023,0.00011471,2]
[327142533,1715847088059,-500.0,0.00011471,2]
[327142534,1715847088068,-500.0,0.00011471,2]
[327142535,1715847088078,-500.0,0.00011471,2]
[327142536,1715847088087,-500.0,0.00011471,2]
[327142537,1715847088096,-500.0,0.00011471,2]
[327142538,1715847088105,-500.0,0.00011471,2]
[327142539,1715847088114,-500.0,0.00011471,2]
[327142540,1715847088123,-500.0,0.00011471,2]
[327142541,1715847088132,-500.0,0.00011471,2]
[327142542,1715847088141,-500.0,0.00011471,2]
[327142543,1715847088150,-500.0,0.00011471,2]
[327142544,1715847088159,-500.0,0.00011471,2]
[327142545,1715847088169,-263.03121678,0.00011471,2]
[327142546,1715847088178,-605.91,0.00011471,2]
[327142547,1715847088187,-605.91,0.00011471,2]
[327142548,1715847088196,-605.91,0.00011471,2]
[327142549,1715847088206,-500.0,0.00011471,2]
[327142550,1715847088215,-500.0,0.00011471,2]
[327142551,1715847088224,-500.0,0.00011471,2]
[327142552,1715847088233,-356.12768003,0.00011471,2]
[327142553,1715847088242,-500.0,0.00011471,2]
[327142554,1715847088252,-500.0,0.00011471,2]
[327142555,1715847088262,-500.0,0.00011471,2]
[327142556,1715847088271,-500.0,0.00011471,2]
[327142557,1715847088280,-500.0,0.00011471,2]
[327142558,1715847088290,-500.0,0.00011471,2]
[327142559,1715847088299,-500.0,0.00011471,2]
[327142560,1715847088309,-500.0,0.00011471,2]
[327142561,1715847088325,-500.0,0.00011471,2]
[327142562,1715847088334,-500.0,0.00011471,2]
[327142563,1715847088343,-500.0,0.00011471,2]
[327142564,1715847088352,-500.0,0.00011471,2]
[327142565,1715847088363,-218.12454037,0.00011471,2]
[327142566,1715847088372,-500.0,0.00011471,2]
[327142567,1715847088381,-500.0,0.00011471,2]
[327142568,1715847088390,-261.05321944,0.00011471,2]
[327142569,1715847088399,-500.0,0.00011471,2]
[327142570,1715847088409,-500.0,0.00011471,2]
[327142571,1715847088418,-500.0,0.00011471,2]
[327142572,1715847088428,-500.0,0.00011471,2]
[327142573,1715847088437,-1290.11,0.00011471,2]
[327142574,1715847088447,-500.0,0.00011471,2]
[327142575,1715847088456,-500.0,0.00011471,2]
[327142576,1715847088465,-500.0,0.00011471,2]
[327142577,1715847088474,-220.13923709,0.00011471,2]
[327142578,1715847088483,-500.0,0.00011471,2]
[327142579,1715847088493,-151.0,0.00011471,2]
[327142580,1715847088503,-500.0,0.00011471,2]
[327142581,1715847088512,-530.23174782,0.00011471,2]
[327142582,1715847088522,-500.0,0.00011471,2]
[327142583,1715847088532,-500.0,0.00011471,2]
[327142584,1715847088541,-500.0,0.00011471,2]
[327142585,1715847088550,-500.0,0.00011471,2]
[327142586,1715847088560,-500.0,0.00011471,2]
[327142587,1715847088570,-500.0,0.00011471,2]
[327142588,1715847088579,-500.0,0.00011471,2]
[327142589,1715847088588,-500.0,0.00011471,2]
[327142590,1715847088597,-500.0,0.00011471,2]
[327142591,1715847088606,-500.0,0.00011471,2]
[327142592,1715847088616,-312.54198575,0.00011471,2]
[327142593,1715847088626,-1190.31,0.00011471,2]
[327142594,1715847088635,-500.0,0.00011471,2]
[327142595,1715847088644,-500.0,0.00011471,2]
[327142596,1715847088654,-500.0,0.00011471,2]
[327142597,1715847088664,-500.0,0.00011471,2]
[327142598,1715847088673,-500.0,0.00011471,2]
[327142599,1715847088682,-1824.4,0.00011471,2]
[327142600,1715847088692,-500.0,0.00011471,2]
[327142601,1715847088701,-500.0,0.00011471,2]
[327142602,1715847088710,-500.0,0.00011472,2]
[327142603,1715847088719,-500.0,0.00011472,2]
[327142604,1715847088728,-618.04264868,0.00011472,2]
[327142605,1715847088738,-500.0,0.00011472,2]
[327142606,1715847088748,-517.43,0.00011472,2]
[327142607,1715847088757,-500.0,0.00011472,2]
[327142608,1715847088765,-604.24,0.00011472,2]
[327142609,1715847088775,-500.0,0.00011472,2]
[327142610,1715847088784,-500.0,0.00011472,2]
[327142611,1715847088793,-500.0,0.00011472,2]
[327142612,1715847088801,-186.01539031,0.00011472,2]
[327142613,1715847088810,-500.0,0.00011472,2]
[327142614,1715847088819,-500.0,0.00011472,2]
[327142615,1715847088828,-500.0,0.00011472,2]
[327142616,1715847088837,-500.0,0.00011472,2]
[327142617,1715847088847,-292.57071612,0.00011472,2]
[327142618,1715847088856,-605.91,0.00011472,2]
[327142619,1715847088864,-500.0,0.00011472,2]
[327142620,1715847088873,-500.0,0.00011472,2]
[327142621,1715847088882,-500.0,0.00011472,2]
[327142622,1715847088891,-159.08278655,0.00011472,2]
[327142623,1715847088901,-500.0,0.00011472,2]
[327142624,1715847088911,-500.0,0.00011472,2]
[327142625,1715847088920,-500.0,0.00011472,2]
[327142626,1715847088929,-500.0,0.00011472,2]
[327142627,1715847088939,-500.0,0.00011472,2]
[327142628,1715847088948,-1000.0,0.00011473,2]
[327142629,1715847088957,-500.0,0.00011473,2]
[327142630,1715847088966,-8501.9805,0.00011473,2]
[327142631,1715847088976,-5230.74621238,0.00011477,2]
[327142632,1715847088984,-150.0,0.00011564,2]
[327142633,1715847088995,-500.0,0.0001157,2]
[327142634,1715847089004,-539.49490485,0.0001157,2]
[327142635,1715847089013,-500.0,0.0001157,2]
[327142636,1715847089023,-618.42,0.0001157,2]
[327142637,1715847089033,-500.0,0.0001157,2]
[327142638,1715847089042,-500.0,0.0001157,2]
[327142639,1715847089051,-150.0,0.0001157,2]
[327142640,1715847089060,-500.0,0.00011571,2]
[327142641,1715847089070,-500.0,0.00011571,2]
[327142642,1715847089079,-500.0,0.00011571,2]
[327142643,1715847089088,-500.0,0.00011571,2]
[327142644,1715847089097,-500.0,0.00011571,2]
[327142645,1715847089105,-500.0,0.00011571,2]
[327142646,1715847089115,-500.0,0.00011571,2]
[327142647,1715847089124,-500.0,0.00011571,2]
[327142648,1715847089133,-500.0,0.00011571,2]
[327142649,1715847089143,-517.43,0.00011571,2]
[327142650,1715847089151,-517.43,0.00011571,2]
[327142651,1715847089161,-517.43,0.00011571,2]
[327142652,1715847089170,-500.0,0.00011571,2]
[327142653,1715847089179,-500.0,0.00011571,2]
[327142654,1715847089188,-500.0,0.00011571,2]
[327142655,1715847089197,-604.24,0.00011571,2]
[327142656,1715847089206,-604.24,0.00011571,2]
[327142657,1715847089223,-604.24,0.00011571,2]
[327142658,1715847089241,-500.0,0.00011571,2]
[327142659,1715847089254,-500.0,0.00011571,2]
[327142660,1715847089270,-500.0,0.00011571,2]
[327142661,1715847089285,-317.96545768,0.00011571,2]
[327142662,1715847089300,-500.0,0.00011571,2]
[327142663,1715847089320,-500.0,0.00011571,2]
[327142664,1715847089336,-500.0,0.00011571,2]
[327142665,1715847089351,-246.34304509,0.00011571,2]
[327142666,1715847089367,-500.0,0.00011571,2]
[327142667,1715847089382,-500.0,0.00011571,2]
[327142668,1715847089394,-500.0,0.00011571,2]
[327142669,1715847089408,-500.0,0.00011571,2]
[327142670,1715847089423,-214.13477505,0.00011571,2]
[327142671,1715847089437,-605.91,0.00011571,2]
[327142672,1715847089454,-605.91,0.00011571,2]
[327142673,1715847089470,-605.91,0.00011571,2]
[327142674,1715847089481,-500.0,0.00011571,2]
[327142675,1715847089495,-500.0,0.00011571,2]
[327142676,1715847089509,-232.0577399,0.00011571,2]
[327142677,1715847089523,-500.0,0.00011571,2]
[327142678,1715847089536,-500.0,0.00011571,2]
[327142679,1715847089552,-205.89,0.00011571,2]
[327142680,1715847089563,-500.0,0.00011571,2]
[327142681,1715847089577,-500.0,0.00011571,2]
[327142682,1715847089590,-500.0,0.00011571,2]
[327142683,1715847089602,-500.0,0.00011571,2]
[327142684,1715847089615,-500.0,0.00011571,2]
[327142685,1715847089628,-500.0,0.00011571,2]
[327142686,1715847089640,-500.0,0.00011571,2]
[327142687,1715847089652,-167.74121459,0.00011571,2]
[327142688,1715847089665,-618.42,0.00011571,2]
[327142689,1715847089678,-618.42,0.00011571,2]
[327142690,1715847089691,-500.0,0.00011571,2]
[327142691,1715847089704,-500.0,0.00011571,2]
[327142692,1715847089717,-500.0,0.00011571,2]
[327142693,1715847089730,-500.0,0.00011571,2]
[327142694,1715847089742,-500.0,0.00011571,2]
[327142695,1715847089755,-500.0,0.00011571,2]
[327142696,1715847089768,-500.0,0.00011571,2]
[327142697,1715847089780,-500.0,0.00011571,2]
[327142698,1715847089793,-192.778736,0.00011571,2]
[327142699,1715847089805,-463.16499049,0.00011571,2]
[327142700,1715847089818,-500.0,0.00011572,2]
[327142701,1715847089830,-474.74626562,0.00011572,2]
[327142702,1715847089842,-500.0,0.00011572,2]
[327142703,1715847089854,-500.0,0.00011572,2]
[327142704,1715847089867,-500.0,0.00011572,2]
[327142705,1715847089879,-330.65154175,0.00011572,2]
[327142706,1715847089892,-517.43,0.00011572,2]
[327142707,1715847089904,-517.43,0.00011572,2]
[327142708,1715847089917,-151.0,0.00011572,2]
[327142709,1715847089931,-500.0,0.00011572,2]
[327142710,1715847089944,-286.30694261,0.00011572,2]
[327142711,1715847089956,-151.0,0.00011572,2]
[327142712,1715847089969,-604.24,0.00011572,2]
[327142713,1715847089981,-604.24,0.00011572,2]
[327142714,1715847089993,-500.0,0.00011572,2]
[327142715,1715847090008,-500.0,0.00011572,2]
[327142716,1715847090023,-425.82959515,0.00011572,2]
[327142717,1715847090036,-500.0,0.00011572,2]
[327142718,1715847090048,-500.0,0.00011572,2]
[327142719,1715847090061,-605.91,0.00011572,2]
[327142720,1715847090073,-605.91,0.00011572,2]
[327142721,1715847090086,-500.0,0.00011572,2]
[327142722,1715847090098,-500.0,0.00011572,2]
[327142723,1715847090111,-300.27481159,0.00011572,2]
[327142724,1715847090125,-241.83964895,0.00011572,2]
[327142725,1715847090137,-500.0,0.00011572,2]
[327142726,1715847090150,-500.0,0.00011572,2]
[327142727,1715847090163,-471.35003063,0.00011572,2]
[327142728,1715847090175,-500.0,0.00011573,2]
[327142729,1715847090187,-500.0,0.00011573,2]
[327142730,1715847090199,-595.18516834,0.00011573,2]
[327142731,1715847090212,-517.43,0.00011573,2]
[327142732,1715847090224,-517.43,0.00011573,2]
[327142733,1715847090236,-517.43,0.00011573,2]
[327142734,1715847090250,-604.24,0.00011573,2]
[327142735,1715847090263,-604.24,0.00011573,2]
[327142736,1715847090276,-604.24,0.00011573,2]
[327142737,1715847090289,-500.0,0.00011573,2]
[327142738,1715847090301,-500.0,0.00011573,2]
[327142739,1715847090315,-500.0,0.00011573,2]
[327142740,1715847090329,-500.0,0.00011573,2]
[327142741,1715847090341,-596.7068072,0.00011573,2]
[327142742,1715847090355,-500.0,0.00011573,2]
[327142743,1715847090367,-500.0,0.00011573,2]
[327142744,1715847090380,-500.0,0.00011573,2]
[327142745,1715847090393,-605.91,0.00011573,2]
[327142746,1715847090408,-605.91,0.00011573,2]
[327142747,1715847090420,-605.91,0.00011573,2]
[327142748,1715847090429,-500.0,0.00011573,2]
[327142749,1715847090438,-500.0,0.00011573,2]
[327142750,1715847090447,-500.0,0.00011573,2]
[327142751,1715847090456,-500.0,0.00011573,2]
[327142752,1715847090466,-500.0,0.00011573,2]
[327142753,1715847090475,-385.3832249,0.00011573,2]
[327142754,1715847090484,-185.95138286,0.00011574,2]
[327142755,1715847090494,-517.43,0.00011574,2]
[327142756,1715847090503,-517.43,0.00011574,2]
[327142757,1715847090513,-517.43,0.00011574,2]
[327142758,1715847090523,-517.43,0.00011574,2]
[327142759,1715847090532,-517.65575255,0.00011574,2]
[327142760,1715847090542,-604.24,0.00011574,2]
[327142761,1715847090551,-604.24,0.00011574,2]
[327142762,1715847090561,-604.24,0.00011574,2]
[327142763,1715847090570,-604.24,0.00011574,2]
[327142764,1715847090579,-604.24011647,0.00011574,2]
[327142765,1715847090588,-500.0,0.00011574,2]
[327142766,1715847090597,-500.0,0.00011574,2]
[327142767,1715847090606,-500.0,0.00011574,2]
[327142768,1715847090615,-160.42852835,0.00011574,2]
[327142769,1715847090624,-605.91,0.00011574,2]
[327142770,1715847090633,-605.91,0.00011574,2]
[327142771,1715847090642,-605.91,0.00011574,2]
[327142772,1715847090651,-605.91,0.00011574,2]
[327142773,1715847090660,-606.03883416,0.00011574,2]
[327142774,1715847090669,-593.86658566,0.00011574,2]
[327142775,1715847090678,-409.42479731,0.00011575,2]
[327142776,1715847090687,-151.0,0.00011625,2]
[327142777,1715847090696,-443.495,0.00011626,2]
[327142778,1715847090705,-618.523,0.00011626,2]
[327142779,1715847090714,-426.209,0.00011626,2]
[327142780,1715847090722,-166.902,0.00011626,2]
[327142781,1715847090731,-808.369,0.00011626,2]
[327142782,1715847090741,-153.152,0.00011626,2]
[327142783,1715847090751,-1663.537,0.00011626,2]
[327142784,1715847090760,-151.81,0.00011626,2]
[327142785,1715847090770,-1437.711,0.00011626,2]
[327142786,1715847090779,-1138.943,0.00011626,2]
[327142787,1715847090788,-218.0,0.00011626,2]
[327142788,1715847090797,-3191.023,0.00011626,2]
[327142789,1715847090806,-482.0,0.00011626,2]
[327142790,1715847090815,-717.76,0.00011642,2]
[327142791,1715847090824,-213.62716783,0.00011648,2]
[327142792,1715847090833,-13643.21276648,0.0001165,2]
[327142793,1715847090842,-5230.74621238,0.00011653,2]
[327142794,1715847090851,-150.0,0.00011672,2]
[327142795,1715847090860,-4167.576,0.00011682,2]
[327142796,1715847090869,-37852.0,0.00011682,2]
[327142797,1715847090878,-5913.0,0.00011682,2]
[327142798,1715847090887,-1071.429,0.00011682,2]
[327142799,1715847090897,-151.0,0.00011688,2]
[327142800,1715847090906,-200.0,0.00011691,2]